fUST/lending_fUST_20251011
["ID","MTS","AMOUNT","RATE_DAILY","PERIOD"]
[390803993,1760160644966,-500.0,0.00027397,9]
[390803994,1760160644975,-500.0,0.00027397,9]
[390803995,1760160644984,-326.40369526,0.00027397,9]
[390803996,1760160644993,-541.66,0.00027397,9]
[390803997,1760160645002,-541.66,0.00027397,9]
[390803998,1760160645011,-541.66,0.00027397,9]
[390803999,1760160645020,-541.66,0.00027397,9]
[390804000,1760160645029,-541.66,0.00027397,9]
[390804001,1760160645039,-541.66,0.00027397,9]
[390804002,1760160645048,-541.66,0.00027397,9]
[390804003,1760160645056,-541.66,0.00027397,9]
[390804004,1760160645066,-541.66,0.00027397,9]
[390804005,1760160645075,-541.66,0.00027397,9]
[390804006,1760160645083,-541.66,0.00027397,9]
[390804007,1760160645093,-541.66,0.00027397,9]
[390804008,1760160645103,-541.66,0.00027397,9]
[390804009,1760160645113,-574.36866227,0.00027397,9]
[390804010,1760160645122,-541.66,0.00027397,9]
[390804011,1760160645131,-541.66,0.00027397,9]
[390804012,1760160645140,-541.66,0.00027397,9]
[390804013,1760160645150,-541.66,0.00027397,9]
[390804014,1760160645161,-541.66,0.00027397,9]
[390804015,1760160645171,-541.66,0.00027397,9]
[390804016,1760160645181,-152.729568,0.00027397,7]
[390804017,1760160645194,-541.66,0.00027397,9]
[390804018,1760160645203,-541.66,0.00027397,9]
[390804019,1760160645213,-541.66,0.00027397,9]
[390804020,1760160645224,-541.66,0.00027397,9]
[390804021,1760160645234,-541.87439026,0.00027397,9]
[390804022,1760160645243,-500.0,0.00027397,9]
[390804023,1760160645252,-500.0,0.00027397,9]
[390804024,1760160645262,-500.0,0.00027397,9]
[390804025,1760160645271,-500.0,0.00027397,9]
[390804026,1760160645280,-500.0,0.00027397,9]
[390804027,1760160645289,-500.0,0.00027397,9]
[390804028,1760160645298,-500.0,0.00027397,9]
[390804029,1760160645307,-500.0,0.00027397,9]
[390804030,1760160645316,-500.0,0.00027397,9]
[390804031,1760160645325,-500.0,0.00027397,9]
[390804032,1760160645336,-500.0,0.00027397,9]
[390804033,1760160645346,-500.0,0.00027397,9]
[390804034,1760160645355,-500.0,0.00027397,9]
[390804035,1760160645364,-500.0,0.00027397,9]
[390804036,1760160645373,-500.0,0.00027397,9]
[390804037,1760160645382,-500.0,0.00027397,9]
[390804038,1760160645391,-433.55239245,0.00027397,9]
[390804039,1760160645399,-501.56903866,0.00027397,9]
[390804040,1760160645409,-500.0,0.00027397,9]
[390804041,1760160645418,-547.11,0.00027397,9]
[390804042,1760160645427,-500.0,0.00027397,9]
[390804043,1760160645436,-547.11,0.00027397,9]
[390804044,1760160645445,-500.0,0.00027397,9]
[390804045,1760160645454,-547.11,0.00027397,9]
[390804046,1760160645463,-547.11,0.00027397,9]
[390804047,1760160645473,-500.0,0.00027397,9]
[390804048,1760160645482,-547.11,0.00027397,9]
[390804049,1760160645491,-547.11,0.00027397,9]
[390804050,1760160645501,-500.0,0.00027397,9]
[390804051,1760160645512,-547.11,0.00027397,9]
[390804052,1760160645521,-500.0,0.00027397,9]
[390804053,1760160645530,-547.11,0.00027397,9]
[390804054,1760160645539,-500.0,0.00027397,9]
[390804055,1760160645548,-500.0,0.00027397,9]
[390804056,1760160645559,-500.0,0.00027397,9]
[390804057,1760160645571,-547.11,0.00027397,9]
[390804058,1760160645580,-500.0,0.00027397,9]
[390804059,1760160645590,-547.11,0.00027397,9]
[390804060,1760160645599,-500.0,0.00027397,9]
[390804061,1760160645610,-547.11,0.00027397,9]
[390804062,1760160645621,-547.11,0.00027397,9]
[390804063,1760160645630,-500.0,0.00027397,9]
[390804064,1760160645639,-500.0,0.00027397,9]
[390804065,1760160645648,-547.11,0.00027397,9]
[390804066,1760160645657,-277.58426618,0.00027397,9]
[390804067,1760160645666,-547.11,0.00027397,9]
[390804068,1760160645675,-547.11,0.00027397,9]
[390804069,1760160645684,-547.11,0.00027397,9]
[390804070,1760160645693,-547.11,0.00027397,9]
[390804071,1760160645702,-547.11,0.00027397,9]
[390804072,1760160645711,-547.11,0.00027397,9]
[390804073,1760160645720,-547.11,0.00027397,9]
[390804074,1760160645728,-547.11,0.00027397,9]
[390804075,1760160645737,-547.11,0.00027397,9]
[390804076,1760160645747,-547.11,0.00027397,9]
[390804077,1760160645759,-547.29,0.00027397,9]
[390804078,1760160645768,-500.0,0.00027397,9]
[390804079,1760160645777,-500.0,0.00027397,9]
[390804080,1760160645786,-500.0,0.00027397,9]
[390804081,1760160645795,-500.0,0.00027397,9]
[390804082,1760160645804,-500.0,0.00027397,9]
[390804083,1760160645813,-500.0,0.00027397,9]
[390804084,1760160645823,-500.0,0.00027397,9]
[390804085,1760160645831,-500.0,0.00027397,9]
[390804086,1760160645841,-500.0,0.00027397,9]
[390804087,1760160645850,-500.0,0.00027397,9]
[390804088,1760160645858,-500.0,0.00027397,9]
[390804089,1760160645867,-500.0,0.00027397,9]
[390804091,1760160645876,-500.0,0.00027397,9]
[390804093,1760160645885,-328.44,0.00027397,9]
[390804095,1760160645894,-500.0,0.00027397,9]
[390804096,1760160645903,-500.0,0.00027397,9]
[390804098,1760160645912,-500.0,0.00027397,9]
[390804100,1760160645920,-500.0,0.00027397,9]
[390804102,1760160645929,-500.0,0.00027397,9]
[390804104,1760160645938,-500.0,0.00027397,9]
[390804105,1760160645947,-500.0,0.00027397,9]
[390804106,1760160645956,-500.0,0.00027397,9]
[390804107,1760160645965,-500.0,0.00027397,9]
[390804108,1760160645975,-500.0,0.00027397,9]
[390804109,1760160645983,-500.0,0.00027397,9]
[390804110,1760160645993,-156.35781397,0.00027397,9]
[390804111,1760160646008,-500.0,0.00027397,9]
[390804112,1760160646018,-500.0,0.00027397,9]
[390804113,1760160646027,-500.0,0.00027397,9]
[390804114,1760160646036,-500.0,0.00027397,9]
[390804115,1760160646045,-500.0,0.00027397,9]
[390804116,1760160646054,-500.0,0.00027397,9]
[390804117,1760160646063,-500.0,0.00027397,9]
[390804118,1760160646073,-500.0,0.00027397,9]
[390804119,1760160646082,-500.0,0.00027397,9]
[390804120,1760160646092,-500.0,0.00027397,9]
[390804121,1760160646101,-500.0,0.00027397,9]
[390804122,1760160646111,-500.0,0.00027397,9]
[390804123,1760160646119,-500.0,0.00027397,9]
[390804124,1760160646128,-500.0,0.00027397,9]
[390804125,1760160646138,-500.0,0.00027397,9]
[390804126,1760160646147,-483.54979153,0.00027397,9]
[390804127,1760160646156,-500.0,0.00027397,9]
[390804128,1760160646165,-502.23411837,0.00027397,9]
[390804129,1760160646175,-151.0,0.00027397,7]
[390804130,1760160646185,-151.0,0.00027397,7]
[390804131,1760160646196,-151.0,0.00027397,7]
[390804132,1760160646206,-151.0,0.00027397,7]
[390804133,1760160646215,-239.517125,0.00027397,7]
[390804134,1760160646224,-151.0,0.00027397,7]
[390804135,1760160646234,-1135.99673508,0.00027397,30]
[390804136,1760160646243,-151.0,0.00027397,7]
[390804137,1760160646252,-151.0,0.00027397,7]
[390804138,1760160646263,-272.521676,0.00027397,7]
[390804139,1760160646272,-203.49462558,0.00027397,9]
[390804140,1760160646282,-500.0,0.00027397,9]
[390804141,1760160646291,-500.0,0.00027397,9]
[390804142,1760160646300,-500.0,0.00027397,9]
[390804143,1760160646309,-500.0,0.00027397,9]
[390804144,1760160646320,-500.0,0.00027397,9]
[390804145,1760160646329,-500.0,0.00027397,9]
[390804146,1760160646338,-500.0,0.00027397,9]
[390804147,1760160646348,-500.0,0.00027397,9]
[390804148,1760160646357,-500.0,0.00027397,9]
[390804149,1760160646366,-500.0,0.00027397,9]
[390804150,1760160646375,-500.0,0.00027397,9]
[390804151,1760160646384,-500.0,0.00027397,9]
[390804152,1760160646393,-500.0,0.00027397,9]
[390804153,1760160646402,-500.0,0.00027397,9]
[390804154,1760160646412,-500.0,0.00027397,9]
[390804155,1760160646421,-500.0,0.00027397,9]
[390804156,1760160646432,-500.0,0.00027397,9]
[390804157,1760160646446,-500.0,0.00027397,9]
[390804158,1760160646455,-500.0,0.00027397,9]
[390804159,1760160646464,-500.0,0.00027397,9]
[390804160,1760160646473,-500.0,0.00027397,9]
[390804161,1760160646482,-500.0,0.00027397,9]
[390804162,1760160646491,-500.0,0.00027397,9]
[390804163,1760160646500,-500.0,0.00027397,9]
[390804164,1760160646511,-500.0,0.00027397,9]
[390804165,1760160646521,-500.0,0.00027397,9]
[390804166,1760160646530,-500.0,0.00027397,9]
[390804167,1760160646539,-500.0,0.00027397,9]
[390804168,1760160646548,-500.0,0.00027397,9]
[390804169,1760160646557,-500.0,0.00027397,9]
[390804170,1760160646567,-500.0,0.00027397,9]
[390804171,1760160646576,-550.95726623,0.00027397,9]
[390804172,1760160646585,-500.0,0.00027397,9]
[390804173,1760160646596,-500.0,0.00027397,9]
[390804174,1760160646605,-264.89246572,0.00027397,9]
[390804175,1760160647179,-235.10753428,0.00027397,9]
[390804176,1760160647192,-500.0,0.00027397,9]
[390804177,1760160647202,-500.0,0.00027397,9]
[390804178,1760160647212,-500.0,0.00027397,9]
[390804179,1760160647223,-500.0,0.00027397,9]
[390804180,1760160647232,-500.0,0.00027397,9]
[390804181,1760160647242,-476.61220043,0.00027397,9]
[390804182,1760160647251,-500.0,0.00027397,9]
[390804183,1760160647266,-500.0,0.00027397,9]
[390804184,1760160647275,-500.0,0.00027397,9]
[390804185,1760160647284,-500.0,0.00027397,9]
[390804186,1760160647294,-500.0,0.00027397,9]
[390804187,1760160647303,-333.15,0.00027397,9]
[390804188,1760160647312,-500.0,0.00027397,9]
[390804189,1760160647322,-500.0,0.00027397,9]
[390804190,1760160647332,-500.0,0.00027397,9]
[390804191,1760160647342,-500.0,0.00027397,9]
[390804192,1760160647351,-500.0,0.00027397,9]
[390804193,1760160647361,-500.0,0.00027397,9]
[390804194,1760160647370,-500.0,0.00027397,9]
[390804195,1760160647379,-500.0,0.00027397,9]
[390804196,1760160647389,-500.0,0.00027397,9]
[390804197,1760160647400,-604.49014339,0.00027397,9]
[390804198,1760160647410,-500.0,0.00027397,9]
[390804199,1760160647419,-500.0,0.00027397,9]
[390804200,1760160647429,-500.0,0.00027397,9]
[390804201,1760160647438,-500.0,0.00027397,9]
[390804202,1760160647448,-500.0,0.00027397,9]
[390804203,1760160647457,-500.0,0.00027397,9]
[390804204,1760160647468,-500.0,0.00027397,9]
[390804205,1760160647481,-500.0,0.00027397,9]
[390804206,1760160647492,-500.0,0.00027397,9]
[390804207,1760160647502,-500.0,0.00027397,9]
[390804208,1760160647516,-500.0,0.00027397,9]
[390804209,1760160647526,-500.0,0.00027397,9]
[390804210,1760160647535,-500.0,0.00027397,9]
[390804211,1760160647544,-500.0,0.00027397,9]
[390804212,1760160647554,-135.82150374,0.00027397,9]
[390804213,1760160647839,-543.95,0.00027387,10]
[390804214,1760160685889,200.0,0.00029705,120]
[390804222,1760160986609,200.0,0.00029695,120]
[390804228,1760161283478,3000.0,0.00029701,120]
[390804229,1760161285488,200.0,0.00029701,120]
[390804234,1760161301147,128.54010857,0.00013699,2]
[390804235,1760161301168,45.41469743,0.00013699,2]
[390804237,1760161397968,3578.54072627,0.00029701,60]
[390804244,1760161584933,200.0,0.00029701,120]
[390804280,1760161832678,-173.954806,0.00020187,2]
[390804282,1760161832688,-150.0,0.00020187,2]
[390804284,1760161832697,-172.5,0.00020787,2]
[390804286,1760161832707,-195.0,0.00021387,2]
[390804287,1760161832716,-217.5,0.00021987,2]
[390804288,1760161832728,-487.49192998,0.000233,2]
[390804289,1760161832739,-249.3810615,0.000233,2]
[390804291,1760161832748,-184.996614,0.00026395,2]
[390804293,1760161832758,-173.954806,0.00026676,2]
[390804294,1760161832767,-329.0,0.00026735,3]
[390804295,1760161832779,-172.773,0.00026849,14]
[390804297,1760161832789,-391.9198272,0.00026849,2]
[390804298,1760161832798,-391.9198272,0.00026849,2]
[390804299,1760161832807,-391.9198272,0.00026849,2]
[390804301,1760161832816,-314.1350369,0.00026849,2]
[390804303,1760161832827,-77.7847903,0.00026849,2]
[390804304,1760161832837,-391.9198272,0.00026849,2]
[390804306,1760161832846,-543.2553329,0.00026849,2]
[390804308,1760161832855,-1486.2400496,0.0002689,10]
[390804586,1760161843621,-109.4999504,0.0002689,10]
[390804587,1760161843631,-3042.96,0.0002689,10]
[390804588,1760161843642,-2535.8,0.0002689,10]
[390804589,1760161843651,-2113.17,0.0002689,10]
[390804590,1760161843660,-500.0,0.00026899,2]
[390804591,1760161843670,-207.3155935,0.00026899,2]
[390804592,1760161843679,-500.0,0.00026899,2]
[390804593,1760161843688,-467.87339991,0.00026899,2]
[390804594,1760161843697,-5000.0,0.000269,4]
[390804595,1760161843706,-3949.90526175,0.000269,4]
[390804596,1760161843714,-11455.20748144,0.000269,2]
[390804597,1760161843729,-2376.43188081,0.000269,2]
[390804598,1760161843741,-111152.28294804,0.000269,2]
[390804599,1760161846762,-7196.57746278,0.000269,2]
[390804601,1760161923120,155.0,0.00027397,120]
[390804631,1760162879612,203.53,0.00015205,2]
[390804632,1760162879877,203.52,0.00015205,2]
[390804644,1760163032037,-347.77421581,0.00024604,2]
[390804647,1760163038023,-324.28279442,0.00024604,2]
[390804648,1760163038032,-357.02762367,0.00024853,2]
[390804649,1760163038044,-1000.0,0.00025838,30]
[390804650,1760163038053,-1200.0,0.00026883,2]
[390804651,1760163038063,-300.0,0.00026883,2]
[390804652,1760163038072,-5590.7503642,0.00026884,2]
[390804653,1760163038081,-172.773,0.00026888,14]
[390804654,1760163038090,-849.24,0.0002689,10]
[390804655,1760163038098,-1619.44,0.0002689,10]
[390804656,1760163038107,-1349.53,0.0002689,10]
[390804657,1760163038116,-1124.61,0.0002689,10]
[390804658,1760163038125,-50000.0,0.00026899,2]
[390804659,1760163038134,-500.0,0.00026899,2]
[390804660,1760163038143,-402.03300876,0.00026899,2]
[390804661,1760163038152,-500.0,0.00026899,2]
[390804662,1760163038161,-500.0,0.00026899,2]
[390804663,1760163038170,-460.82803108,0.00026899,2]
[390804664,1760163038179,-500.0,0.00026899,2]
[390804665,1760163038188,-500.0,0.00026899,2]
[390804666,1760163038196,-2944.54447395,0.00026899,2]
[390804667,1760163038206,-500.0,0.00026899,2]
[390804668,1760163038215,-5820.15,0.00026899,2]
[390804669,1760163038224,-176125.95039934,0.000269,2]
[390804760,1760163040122,-10328.78148798,0.000269,2]
[390804776,1760163042967,-7043.64,0.000269,2]
[390804777,1760163043079,-691.36389107,0.000269,2]
[390804786,1760163087481,1125.59519501,0.000297,120]
[390804789,1760163183139,1767.96936929,0.000297,120]
[390804793,1760163290593,3568.41,0.00024,30]
[390804824,1760164149754,164.29065,0.00013699,2]
[390804883,1760164232206,-164.29065,0.00020951,2]
[390804884,1760164232216,-150.0,0.00025205,2]
[390804885,1760164232225,-170.39371027,0.00025805,2]
[390804886,1760164232301,-2.10628973,0.00025805,2]
[390804887,1760164232310,-195.0,0.00026405,2]
[390804888,1760164232320,-300.0,0.00026772,2]
[390804889,1760164232331,-500.0,0.00026773,2]
[390804890,1760164232341,-500.0,0.00026773,2]
[390804892,1760164232350,-500.0,0.00026773,2]
[390804893,1760164232360,-500.0,0.00026773,2]
[390804895,1760164232370,-500.0,0.00026773,2]
[390804896,1760164232379,-500.0,0.00026773,2]
[390804897,1760164232390,-203.25041916,0.00026773,2]
[390804898,1760164232399,-500.0,0.00026773,2]
[390804899,1760164232409,-500.0,0.00026773,2]
[390804900,1760164232418,-500.0,0.00026773,2]
[390804922,1760164232661,-500.0,0.00026773,2]
[390804924,1760164232670,-500.0,0.00026773,2]
[390804926,1760164232680,-163.09704444,0.00026798,2]
[390804928,1760164232690,-484.68436027,0.00026798,2]
[390804930,1760164232699,-396.18444166,0.00026798,2]
[390804932,1760164232708,-13033.44169468,0.00026798,28]
[390804934,1760164232722,-172.77324605,0.00026798,14]
[390804935,1760164232731,-5577.64,0.00026798,2]
[390804936,1760164232741,-12019.82250401,0.00026799,2]
[390804955,1760164238190,-937.17,0.00026789,10]
[390804956,1760164238200,-357980.17749599,0.00026799,2]
[390804957,1760164238209,-49277.0,0.000268,7]
[390804958,1760164238218,-45485.2188646,0.00026891,2]
[390804959,1760164238227,-159.78563945,0.00026958,7]
[390804960,1760164238236,-500.0,0.00026999,2]
[390804961,1760164238245,-302.09968854,0.00026999,2]
[390804962,1760164238255,-287.03797254,0.00026999,2]
[390804963,1760164238264,-200227.54712532,0.00027,14]
[390804964,1760164238273,-217.5,0.00027005,2]
[390804965,1760164238283,-168.0,0.00027134,2]
[390804966,1760164238295,-194.0,0.000272,17]
[390804967,1760164238305,-949.79,0.00027273,2]
[390804968,1760164238315,-158.22,0.00027297,2]
[390804969,1760164238324,-2004.58462644,0.00027297,2]
[390804970,1760164238335,-151.0,0.000273,20]
[390804971,1760164238345,-151.0,0.000273,12]
[390804972,1760164238355,-151.0,0.000273,15]
[390804973,1760164238368,-500.0,0.00027321,2]
[390804974,1760164238378,-500.9986309,0.00027321,2]
[390804975,1760164238387,-500.0,0.00027321,2]
[390804976,1760164238398,-504.52436993,0.00027321,2]
[390804977,1760164238408,-500.0,0.00027321,2]
[390804978,1760164238417,-501.71126757,0.00027321,2]
[390804979,1760164238427,-502.6429702,0.00027321,2]
[390804980,1760164238437,-501.23213622,0.00027321,2]
[390804981,1760164238446,-501.27374146,0.00027321,2]
[390804982,1760164238455,-501.93574929,0.00027321,2]
[390804983,1760164238465,-504.07757736,0.00027321,2]
[390804984,1760164238474,-500.0,0.00027373,2]
[390804985,1760164238483,-500.51742862,0.00027373,2]
[390804986,1760164238493,-500.0,0.00027373,2]
[390804987,1760164238502,-500.0,0.00027373,2]
[390804988,1760164238511,-500.0,0.00027373,2]
[390804989,1760164238520,-503.50225149,0.00027373,2]
[390804990,1760164238529,-500.0,0.00027373,2]
[390804991,1760164238538,-500.0,0.00027373,2]
[390804992,1760164238548,-599.25765008,0.00027397,9]
[390804993,1760164238557,-500.0,0.00027397,9]
[390804994,1760164238566,-500.0,0.00027397,9]
[390804995,1760164238576,-500.0,0.00027397,9]
[390804996,1760164238585,-415.930332,0.00027397,9]
[390804997,1760164238594,-351.13174617,0.00027397,9]
[390804998,1760164238604,-500.0,0.00027397,9]
[390804999,1760164238614,-557.07137658,0.00027397,9]
[390805000,1760164238624,-500.0,0.00027397,9]
[390805001,1760164238633,-500.0,0.00027397,9]
[390805002,1760164238643,-608.88,0.00027397,9]
[390805003,1760164238652,-500.0,0.00027397,9]
[390805004,1760164238662,-500.0,0.00027397,9]
[390805005,1760164238672,-500.0,0.00027397,9]
[390805006,1760164238681,-500.0,0.00027397,9]
[390805007,1760164238690,-428.57,0.00027397,9]
[390805008,1760164238700,-496.66105702,0.00027397,9]
[390805009,1760164238710,-500.0,0.00027397,9]
[390805010,1760164238720,-500.0,0.00027397,9]
[390805011,1760164238730,-500.0,0.00027397,9]
[390805012,1760164238740,-500.0,0.00027397,9]
[390805013,1760164238749,-500.0,0.00027397,9]
[390805014,1760164238758,-500.0,0.00027397,9]
[390805015,1760164238768,-500.0,0.00027397,9]
[390805016,1760164238777,-594.94,0.00027397,9]
[390805017,1760164238787,-500.0,0.00027397,9]
[390805018,1760164238796,-500.0,0.00027397,9]
[390805019,1760164238805,-594.36306143,0.00027397,9]
[390805020,1760164238814,-500.0,0.00027397,9]
[390805021,1760164238823,-500.0,0.00027397,9]
[390805022,1760164238833,-500.0,0.00027397,9]
[390805023,1760164238842,-500.98614057,0.00027397,9]
[390805024,1760164238851,-500.0,0.00027397,9]
[390805025,1760164238861,-500.0,0.00027397,9]
[390805026,1760164238871,-500.0,0.00027397,9]
[390805027,1760164238880,-500.0,0.00027397,9]
[390805028,1760164238889,-500.0,0.00027397,9]
[390805029,1760164238900,-479.38,0.00027397,9]
[390805030,1760164238909,-500.0,0.00027397,9]
[390805031,1760164238919,-500.0,0.00027397,9]
[390805032,1760164238928,-500.0,0.00027397,9]
[390805033,1760164238938,-500.0,0.00027397,9]
[390805034,1760164238948,-500.0,0.00027397,9]
[390805035,1760164238957,-500.0,0.00027397,9]
[390805036,1760164238967,-500.0,0.00027397,9]
[390805037,1760164238976,-500.0,0.00027397,9]
[390805038,1760164238985,-500.0,0.00027397,9]
[390805039,1760164238995,-500.0,0.00027397,9]
[390805040,1760164239005,-500.0,0.00027397,9]
[390805041,1760164239015,-405.35805855,0.00027397,9]
[390805042,1760164239025,-500.0,0.00027397,9]
[390805043,1760164239035,-500.0,0.00027397,9]
[390805044,1760164239044,-610.88567452,0.00027397,9]
[390805045,1760164239054,-500.0,0.00027397,9]
[390805046,1760164239064,-500.0,0.00027397,9]
[390805047,1760164239073,-500.0,0.00027397,9]
[390805048,1760164239083,-500.0,0.00027397,9]
[390805049,1760164239093,-500.0,0.00027397,9]
[390805050,1760164239103,-647.12,0.00027397,9]
[390805051,1760164239114,-500.0,0.00027397,9]
[390805052,1760164239123,-500.0,0.00027397,9]
[390805053,1760164239133,-500.0,0.00027397,9]
[390805054,1760164239143,-500.0,0.00027397,9]
[390805055,1760164239153,-500.0,0.00027397,9]
[390805056,1760164239164,-500.0,0.00027397,9]
[390805057,1760164239174,-563.77372107,0.00027397,9]
[390805058,1760164239183,-500.0,0.00027397,9]
[390805059,1760164239193,-500.0,0.00027397,9]
[390805060,1760164239202,-500.0,0.00027397,9]
[390805061,1760164239211,-500.0,0.00027397,9]
[390805062,1760164239221,-500.0,0.00027397,9]
[390805063,1760164239230,-500.0,0.00027397,9]
[390805064,1760164239240,-500.0,0.00027397,9]
[390805065,1760164239249,-500.0,0.00027397,9]
[390805066,1760164239259,-500.0,0.00027397,9]
[390805067,1760164239268,-500.0,0.00027397,9]
[390805068,1760164239277,-500.0,0.00027397,9]
[390805069,1760164239287,-500.0,0.00027397,9]
[390805070,1760164239300,-500.0,0.00027397,9]
[390805071,1760164239310,-500.0,0.00027397,9]
[390805072,1760164239319,-500.0,0.00027397,9]
[390805073,1760164239329,-500.0,0.00027397,9]
[390805074,1760164239338,-500.0,0.00027397,9]
[390805075,1760164239348,-500.0,0.00027397,9]
[390805076,1760164239357,-437.85801287,0.00027397,9]
[390805077,1760164239369,-500.0,0.00027397,9]
[390805078,1760164239379,-500.0,0.00027397,9]
[390805079,1760164239390,-500.0,0.00027397,9]
[390805080,1760164239400,-500.0,0.00027397,9]
[390805081,1760164239410,-500.0,0.00027397,9]
[390805082,1760164239420,-500.0,0.00027397,9]
[390805083,1760164239429,-500.0,0.00027397,9]
[390805084,1760164239438,-500.0,0.00027397,9]
[390805085,1760164239447,-500.0,0.00027397,9]
[390805086,1760164239456,-500.0,0.00027397,9]
[390805087,1760164239466,-150.72002305,0.00027397,9]
[390805088,1760164239475,-500.0,0.00027397,9]
[390805089,1760164239485,-500.0,0.00027397,9]
[390805090,1760164239494,-500.0,0.00027397,9]
[390805091,1760164239503,-197.14052573,0.00027397,9]
[390805092,1760164239513,-500.0,0.00027397,9]
[390805093,1760164239523,-500.0,0.00027397,9]
[390805094,1760164239533,-500.0,0.00027397,9]
[390805095,1760164239542,-500.0,0.00027397,9]
[390805096,1760164239551,-500.0,0.00027397,9]
[390805097,1760164239561,-501.12122467,0.00027397,9]
[390805098,1760164239571,-500.0,0.00027397,9]
[390805099,1760164239580,-500.0,0.00027397,9]
[390805100,1760164239589,-500.7773851,0.00027397,9]
[390805101,1760164239599,-500.0,0.00027397,9]
[390805103,1760164239609,-500.0,0.00027397,9]
[390805104,1760164239622,-500.0,0.00027397,9]
[390805105,1760164239631,-500.0,0.00027397,9]
[390805106,1760164239641,-500.0,0.00027397,9]
[390805107,1760164239650,-500.0,0.00027397,9]
[390805108,1760164239659,-500.0,0.00027397,9]
[390805109,1760164239668,-500.0,0.00027397,9]
[390805110,1760164239678,-500.0,0.00027397,9]
[390805111,1760164239687,-500.0,0.00027397,9]
[390805112,1760164239696,-500.0,0.00027397,9]
[390805113,1760164239705,-344.96,0.00027397,9]
[390805114,1760164239715,-500.0,0.00027397,9]
[390805115,1760164239725,-500.0,0.00027397,9]
[390805118,1760164239734,-500.0,0.00027397,9]
[390805119,1760164239744,-500.0,0.00027397,9]
[390805120,1760164239754,-500.0,0.00027397,9]
[390805121,1760164239763,-611.28932964,0.00027397,9]
[390805122,1760164239772,-500.0,0.00027397,9]
[390805123,1760164239782,-500.0,0.00027397,9]
[390805124,1760164239792,-500.0,0.00027397,9]
[390805125,1760164239802,-500.0,0.00027397,9]
[390805126,1760164239811,-500.0,0.00027397,9]
[390805127,1760164239820,-500.0,0.00027397,9]
[390805128,1760164239830,-500.0,0.00027397,9]
[390805129,1760164239839,-500.0,0.00027397,9]
[390805130,1760164239849,-500.0,0.00027397,9]
[390805131,1760164239858,-500.0,0.00027397,9]
[390805132,1760164239869,-500.0,0.00027397,9]
[390805133,1760164239879,-500.0,0.00027397,9]
[390805134,1760164239888,-500.0,0.00027397,9]
[390805135,1760164239897,-350.0,0.00027397,9]
[390805136,1760164239907,-500.0,0.00027397,9]
[390805137,1760164239916,-500.0,0.00027397,9]
[390805138,1760164239927,-500.0,0.00027397,9]
[390805139,1760164239937,-500.0,0.00027397,9]
[390805140,1760164239946,-500.0,0.00027397,9]
[390805141,1760164239957,-500.0,0.00027397,9]
[390805142,1760164239966,-500.0,0.00027397,9]
[390805143,1760164239976,-500.0,0.00027397,9]